[Event "Mitropa Cup Open 2024"]
[Site "Apolda"]
[Date "2024.02.20"]
[Round "6.19"]
[White "Velten, Paul"]
[Black "Kollars, Dmitrij"]
[Result "1-0"]
[ECO "C45"]
[WhiteElo "2470"]
[BlackElo "2632"]
[Annotator "RC"]
[PlyCount "95"]
[EventDate "2024.02.15"]
[EventType "team-tourn"]
[EventCountry "GER"]
[SourceTitle "playchess.com"]
[Source "ChessBase"]
[SourceQuality "1"]
[WhiteTeam "France"]
[BlackTeam "Germany"]
[WhiteTeamCountry "FRA"]
[BlackTeamCountry "GER"]
[TimeControl "40/5400+30:1800+30"]

1. e4 {[%emt 0:00:39]} e5 {[%emt 0:00:26]} 2. Nf3 {[%emt 0:00:31]} Nc6 {[%emt 0:00:05]} 3. d4 {[%emt 0:01:06]} exd4 {[%emt 0:00:19]} 4. Nxd4 {[%emt 0:00:23]} Nf6 {[%emt 0:00:37]} 5. Nxc6 {[%emt 0:00:23]} bxc6 {[%emt 0:00:03]} 6. Nd2 {[%emt 0:01:14]} Bc5 {[%emt 0:01:20]} 7. Nb3 {[%emt 0:00:51]} Nxe4 {[%emt 0:01:11]} 8. Nxc5 {[%emt 0:00:35]} Nxc5 {[%emt 0:00:03]} 9. Be3 {[%emt 0:00:13]} Ne6 {[%emt 0:00:58]} 10. Qh5 {[%emt 0:00:30]} Qf6 {[%emt 0:14:54]} 11. Bd3 {[%emt 0:07:06]} d5 {[%emt 0:15:29]} 12. O-O {[%emt 0:03:16]} h6 {[%emt 0:03:44]} 13. Rae1 {[%emt 0:06:49]} O-O {[%emt 0:05:34]} 14. f4 {[%emt 0:04:50]} Re8 {[%emt 0:07:12]} 15. g4 {[%emt 0:06:44]} Bd7 {[%emt 0:10:01]} 16. c3 {[%emt 0:04:29]} Nf8 {[%emt 0:02:14]} 17. g5 {[%emt 0:14:06]} hxg5 {[%emt 0:09:02]} 18. fxg5 {[%emt 0:02:05]} Qe6 {[%emt 0:00:25]} 19. Rf4 {[%emt 0:01:23]} g6 {[%emt 0:07:23]} 20. Qh6 {[%emt 0:02:26]} Qe5 {[%emt 0:00:29]} 21. Rh4 {[%emt 0:01:59]} Qg7 {[%emt 0:08:09]} 22. Qxg7+ {[%emt 0:00:55]} Kxg7 {[%emt 0:00:01]} 23. Bd4+ {[%emt 0:00:47]} f6 {[%emt 0:00:01]} 24. Bxf6+ {[%emt 0:00:48]} Kf7 {[%emt 0:00:18]} 25. Rf1 {[%emt 0:00:07]} Bf5 {[%emt 0:01:45]} 26. Bxf5 {[%emt 0:00:37]} gxf5 {[%emt 0:00:01]} 27. Rxf5 {[%emt 0:00:11]} Re1+ {[%emt 0:06:43]} 28. Kg2 {[%emt 0:01:13]} Rae8 {[%emt 0:00:44]} 29. Rf2 {[%emt 0:02:21]} R8e2 {[%emt 0:00:37]} 30. Ra4 {[%emt 0:02:41]} Ne6 {[%emt 0:00:30]} 31. Rxa7 {[%emt 0:02:11]} Kg6 {[%emt 0:00:06]} 32. Ra6 {[%emt 0:00:56]} Re4 {[%emt 0:02:49]} 33. Rxc6 {[%emt 0:02:32]} Rg4+ {[%emt 0:00:31]} 34. Kf3 {[%emt 0:00:50]} Rf4+ {[%emt 0:01:48]} 35. Kg3 {[%emt 0:00:19]} Rg1+ {[%emt 0:00:38]} 36. Rg2 {[%emt 0:00:13]} Rgf1 {[%emt 0:00:08]} 37. h3 {[%emt 0:00:45]} Kf5 {[%emt 0:00:22]} 38. Kh2 {[%emt 0:01:32]} R4f3 {[%emt 0:00:04]} 39. Bd4 {[%emt 0:01:36]} Nf4 {[%emt 0:01:23]} 40. Rf6+ {[%emt 0:00:06]} Ke4 {[%emt 0:00:02]} 41. Rxf4+ {[%emt 0:30:18]} Rxf4 {[%emt 0:30:47]} 42. g6 {[%emt 0:00:05]} Rf8 {[%emt 0:00:36]} 43. g7 {[%emt 0:00:04]} Rg8 {[%emt 0:00:07]} 44. b4 {[%emt 0:00:09]} Kf5 {[%emt 0:00:49]} 45. a4 {[%emt 0:00:27]} Ke6 {[%emt 0:00:51]} 46. a5 {[%emt 0:01:12]} Ra1 {[%emt 0:00:21]} 47. Rf2 {[%emt 0:00:21]} c5 {[%emt 0:00:32]} 48. Rf8 {[%emt 0:02:34]} 1-0

[Event "Mitropa Cup Open 2024"]
[Site "Apolda"]
[Date "2024.02.20"]
[Round "6.20"]
[White "Svane, Frederik"]
[Black "Decuigniere, Tom"]
[Result "1-0"]
[ECO "B52"]
[WhiteElo "2625"]
[BlackElo "2401"]
[Annotator "TA"]
[PlyCount "91"]
[EventDate "2024.02.15"]
[EventType "team-tourn"]
[EventCountry "GER"]
[SourceTitle "playchess.com"]
[Source "ChessBase"]
[SourceQuality "1"]
[WhiteTeam "Germany"]
[BlackTeam "France"]
[WhiteTeamCountry "GER"]
[BlackTeamCountry "FRA"]
[TimeControl "40/5400+30:1800+30"]

{[%evp 12,91,14,12,21,23,24,11,14,14,33,0,25,23,20,18,39,37,37,39,38,23,34,29,79,75,68,77,133,123,123,131,132,104,173,167,259,258,248,254,245,226,263,245,258,178,193,199,175,118,239,231,464,457,464,452,605,576,968,597,601,589,539,511,506,499,1087,1084,29982,29983,29995,707,643,340,375,545,29982,29983,29995,29996,29996,29997]} 1. e4 {[%emt 0:00:21]} c5 {[%emt 0:00:07]} 2. Nf3 {[%emt 0:00:15]} d6 {[%emt 0:00:06]} 3. Bb5+ {[%emt 0:00:33]} Bd7 {[%emt 0:00:08]} 4. c4 {[%emt 0:00:15]} e5 {[%emt 0:00:43]} 5. Bxd7+ {[%emt 0:01:20]} Qxd7 {[%emt 0:00:23]} 6. Nc3 {[%emt 0:00:23]} Nc6 {[%emt 0:00:32]} 7. d3 {[%emt 0:00:08]} Be7 {[%emt 0:01:33]} 8. O-O {[%emt 0:00:26]} Bd8 {[%emt 0:02:13]} 9. h3 {[%emt 0:00:08]} Nge7 {[%emt 0:06:25] The position is equal.} 10. Nh4 {[%emt 0:00:10]} h6 {[%emt 0:11:24]} 11. Qg4 {[%emt 0:17:13]} g5 {[%emt 0:05:26] Hoping for ...Qxg4.} 12. Nf5 {[%emt 0:01:04]} Nxf5 {[%emt 0:00:45]} 13. Qxf5 {[%emt 0:00:37]} Nd4 {[%emt 0:21:21]} 14. Qxd7+ {[%emt 0:03:17]} Kxd7 {[%emt 0:00:04]} 15. Rb1 {[%emt 0:17:48]} h5 {[%emt 0:16:03]} 16. Nd5 {[%emt 0:12:08]} g4 {[%emt 0:02:33]} 17. Kh2 {[%emt 0:00:15]} Rg8 {[%emt 0:10:45]} (17... f5 $11 {remains equal.}) 18. Be3 {[%emt 0:02:27]} gxh3 {[%emt 0:00:04]} 19. Kxh3 {[%emt 0:01:02]} Be7 {[%emt 0:00:48]} ({Black should try} 19... Nc2) 20. b4 $16 {[%emt 0:01:45]} b6 {[%emt 0:01:59]} 21. Bxd4 {[%emt 0:04:14]} cxd4 {[%emt 0:01:00]} 22. g3 {[%emt 0:01:49] White is more active.} Rg7 {[%emt 0:02:43]} (22... Raf8 $16) 23. Rb3 $1 $18 {[%emt 0:01:02]} f5 {[%emt 0:02:36]} (23... Bg5 {might work better.} 24. b5 Kc8) 24. exf5 {[%emt 0:01:00] Black must now prevent f6.} Rf7 {[%emt 0:00:10] Black is weak on the light squares} 25. Ra3 {[%emt 0:01:12] Nxb6+ is the strong threat.} Bd8 {[%emt 0:00:04]} 26. g4 {[%emt 0:05:15]} hxg4+ 27. Kxg4 {[%emt 0:00:01]} Kc6 {[%emt 0:04:08]} 28. f4 {[%emt 0:05:17]} Bh4 {[%emt 0:00:27]} 29. Kf3 {[%emt 0:10:07]} (29. Kxh4 $2 {perishes.} Rg8 $19) 29... exf4 {[%emt 0:02:13]} 30. Kxf4 {[%emt 0:00:49]} (30. b5+ Kb7 $11) (30. Rg1 $18) 30... Re8 {[%emt 0:00:59] [#] Black cannot hold the game after this.} (30... Rh8 $16 31. Ra4 Bd8) 31. Rh1 $1 {[%emt 0:00:38]} Be1 $2 {[%emt 0:01:34]} (31... Bd8 32. b5+ Kb7) 32. f6 {[%emt 0:03:45]} Re5 {[%emt 0:00:03]} 33. b5+ {[%emt 0:01:55]} Kc5 {[%emt 0:03:26]} 34. Rh8 {[%emt 0:04:37] Intending Rc8+ and mate.} Bd2+ {[%emt 0:00:12]} 35. Kf3 {[%emt 0:01:39] Threatening mate with Rc8+.} Rxd5 {[%emt 0:00:35] [#]} 36. Rc8+ $1 {[%emt 0:00:05]} (36. cxd5 Rxf6+ 37. Kg4 Rf4+ 38. Kg3 Rf7 $16) 36... Kb4 {[%emt 0:00:03]} 37. Rb3+ {[%emt 0:00:03]} Ka4 {[%emt 0:01:43]} 38. cxd5 {[%emt 0:00:05]} Rxf6+ {[%emt 0:00:03][%mdl 4096] Endgame. KRR-KRB} (38... Bg5 $142 39. Rc4+ Ka5 40. Rxd4 (40. Ra3+ Kxb5 41. Rb3+ Ka6 $18) 40... Rxf6+ 41. Kg4 Bd2) 39. Ke2 {[%emt 0:00:07] White threatens Rc4+ and mate.} Bc3 {[%emt 0:00:52]} 40. Rc4+ {[%emt 0:00:02]} Ka5 {[%emt 0:00:05]} 41. Rc7 {[%emt 0:30:07]} (41. Ra3+ $142 Kxb5 42. Rxa7 Rf2+ 43. Kxf2 Be1+ 44. Kg2 Bh4 45. a4#) 41... Ka4 {[%emt 0:32:35]} 42. Rxa7+ {[%emt 0:01:03]} Ba5 {[%emt 0:00:03][%cal Of6f2]} 43. Rc7 {[%emt 0:00:04]} (43. Rh7 $142 Rf4 44. Rc7) 43... Bc3 {[%emt 0:00:03]} 44. Rc4+ {[%emt 0:00:28] White mates.} Ka5 {[%emt 0:00:04]} 45. Ra3+ {[%emt 0:00:08]} Kxb5 {[%emt 0:00:09]} 46. Ra8 {[%emt 0:00:05] Weighted Error Value: White=0.34/Black=0.64.  Mistake:       	White=1     	Black=7      Inaccurate:     	White=2     	Black=4      OK:         	White=11    	Black=7      Best:        	White=4     	Black=3      Strong:       	White=1     	---} 1-0

[Event "Mitropa Cup Open 2024"]
[Site "Apolda"]
[Date "2024.02.21"]
[Round "7.1"]
[White "Subelj, Jan"]
[Black "Girel, Joseph"]
[Result "1/2-1/2"]
[ECO "A20"]
[WhiteElo "2512"]
[BlackElo "2492"]
[Annotator "TA"]
[PlyCount "79"]
[EventDate "2024.02.15"]
[EventType "team-tourn"]
[EventCountry "GER"]
[SourceTitle "playchess.com"]
[Source "ChessBase"]
[SourceQuality "1"]
[WhiteTeam "Slovenia"]
[BlackTeam "France"]
[WhiteTeamCountry "SLO"]
[BlackTeamCountry "FRA"]
[TimeControl "40/5400+30:1800+30"]

{[%evp 9,79,31,30,5,14,13,38,22,4,27,31,9,15,9,25,7,35,16,15,8,39,30,35,33,22,35,25,17,16,0,0,0,38,49,61,48,46,40,53,54,55,54,60,54,49,61,47,47,48,41,43,47,44,51,51,33,31,16,31,24,41,12,19,17,18,8,8,8,8,0,0,0]} 1. c4 {[%emt 0:00:16]} e5 {[%emt 0:01:34]} 2. g3 {[%emt 0:00:30]} Nf6 {[%emt 0:00:45]} 3. Bg2 {[%emt 0:00:29]} c6 {[%emt 0:00:27]} 4. Nf3 {[%emt 0:00:32]} e4 {[%emt 0:00:14]} 5. Nd4 {[%emt 0:00:07][%cal Bf3d4,Bd4b3,Bb3d2,Bd2e4,Be4d6][%mdl 32]} Qb6 {[%emt 0:01:10]} 6. Nb3 {[%emt 0:01:21]} a5 {[%emt 0:00:39][%cal Ba7a5,Ba5a4][%mdl 32] [#] Hoping for ...a4.} 7. d3 {[%emt 1:30:45]} a4 {[%emt 1:29:11]} 8. N3d2 {[%emt 0:00:30] White is slightly better.} Bc5 {[%emt 0:00:30]} 9. O-O {[%emt 0:00:30]} e3 {[%emt 0:00:00]} 10. fxe3 {[%emt 0:00:00]} Bxe3+ {[%emt 0:00:00]} 11. Kh1 {[%emt 0:01:00][%cal Of1f6]} Ng4 {[%emt 0:00:00]} 12. Ne4 {[%emt 0:00:00] Threatens to win with Nd6+.} (12. Nc3 $5) 12... O-O {[%emt 0:00:00]} 13. Nbc3 {[%emt 0:00:00]} d5 {[%emt 0:00:00]} 14. cxd5 {[%emt 0:00:00]} (14. Nxa4 $2 Rxa4 15. Nd6 Ra6 16. Nxc8 Rxc8 $19) 14... Ra5 {[%emt 0:00:00]} 15. Nd6 $1 {[%emt 0:00:00] Nc4 is the strong threat.} Bxc1 {[%emt 0:00:00]} 16. Rxc1 {[%emt 0:00:00] Black must now prevent Nc4.} Nf2+ {[%emt 0:00:00] [#]} 17. Rxf2 $1 {[%emt 0:00:00]} Qxf2 {[%emt 0:00:00]} 18. Qd2 {[%emt 0:03:30] Strongly threatening d4.} Ra6 {[%emt 0:05:00]} 19. Nce4 {[%emt 0:00:30] Excellent horsemanship.} Qd4 {[%emt 0:00:30][%cal Oc6d5]} 20. e3 {[%emt 0:00:00]} Qe5 {[%emt 0:00:00][%cal Oc6d5]} (20... Qxd5 $2 21. Nf6+ gxf6 22. Bxd5 $18) 21. d4 {[%emt 0:00:00] Black is weak on the dark squares} Qe7 {[%emt 0:00:00]} (21... Qxd5 $2 22. Nf6+ gxf6 23. Bxd5 $18) 22. Nxc8 {[%emt 0:00:00]} Rxc8 {[%emt 0:00:00]} 23. d6 {[%emt 0:00:00]} Qe6 {[%emt 0:00:00]} 24. Nc5 $1 {[%emt 0:00:00][%csl LRa6,LRb7,LRe6]} Qxd6 {[%emt 0:00:00]} 25. Qb4 $1 {[%emt 0:00:00]} Qe7 {[%emt 0:00:00]} (25... Ra7 $2 26. Qb6 Ra8 27. Qxb7 $18) 26. Nxa6 {[%emt 0:00:00]} Qxe3 {[%emt 0:00:00]} 27. Rf1 {[%emt 0:00:00]} (27. Qxb7 $2 Qxc1+) 27... bxa6 {[%emt 0:00:00]} 28. Qxa4 {[%emt 0:00:00]} Rd8 {[%emt 0:00:00]} 29. Qc4 {[%emt 0:00:00]} (29. Bxc6 Nxc6 (29... Qxd4 30. Qb3 $16) (29... Rxd4 30. Qc2 $11) 30. Qxc6 Qxd4) 29... Qe6 {[%emt 0:00:00]} 30. Qxe6 {[%emt 0:00:00]} fxe6 $14 {[%emt 0:00:00][%mdl 4096] Endgame. KRB-KRN} 31. Bh3 {[%emt 0:00:00]} Rd6 {[%emt 0:00:00]} 32. Kg2 {[%emt 0:00:00]} Nd7 {[%emt 0:00:00]} 33. Kf3 {[%emt 0:00:00]} Kf7 {[%emt 0:00:00]} 34. Ke4+ {[%emt 0:00:00]} Ke7 {[%emt 0:00:00]} 35. Ke3 {[%emt 0:00:00]} Nf6 {[%emt 0:00:29] The position is equal.} 36. Rc1 {[%emt 0:08:30]} Nd5+ {[%emt 0:00:17]} 37. Ke2 {[%emt 0:00:00]} e5 {[%emt 0:00:30]} 38. dxe5 {[%emt 0:00:00]} Rh6 {[%emt 0:01:24]} 39. Bg2 Rxh2 40. Kf3 {[%emt 0:02:00] Weighted Error Value: White=0.04 (flawless) /Black=0.04 (flawless) .  Inaccurate:     	White=1     	Black=2      OK:         	White=16    	Black=21     Best:        	White=4     	Black=4      Strong:       	White=3     	---        Brilliant:      	White=1     	---} 1/2-1/2

[Event "Mitropa Cup Open 2024"]
[Site "Apolda"]
[Date "2024.02.21"]
[Round "7.2"]
[White "Makkar, Rajat"]
[Black "Goroshkov, Maksym"]
[Result "0-1"]
[ECO "E11"]
[WhiteElo "2453"]
[BlackElo "2338"]
[Annotator "RC"]
[PlyCount "62"]
[EventDate "2024.02.15"]
[EventType "team-tourn"]
[EventCountry "GER"]
[SourceTitle "playchess.com"]
[Source "ChessBase"]
[SourceQuality "1"]
[WhiteTeam "France"]
[BlackTeam "Slovenia"]
[WhiteTeamCountry "FRA"]
[BlackTeamCountry "SLO"]
[TimeControl "40/5400+30:1800+30"]

1. d4 {[%emt 0:00:04]} Nf6 {[%emt 0:01:02]} 2. c4 {[%emt 0:00:09]} e6 {[%emt 0:00:30]} 3. Nf3 {[%emt 0:04:39]} d5 {[%emt 0:01:00]} 4. g3 {[%emt 0:00:16]} Bb4+ {[%emt 0:02:36]} 5. Bd2 {[%emt 0:00:15]} a5 {[%emt 0:00:07]} 6. Bg2 {[%emt 0:00:42]} O-O {[%emt 0:02:17]} 7. Qb3 {[%emt 0:00:11]} c5 {[%emt 0:02:32]} 8. Bxb4 {[%emt 0:01:28]} axb4 {[%emt 0:07:54]} 9. dxc5 {[%emt 0:01:59]} Nc6 {[%emt 0:01:41]} 10. Nbd2 {[%emt 0:03:18]} d4 {[%emt 0:00:17]} 11. e3 {[%emt 0:05:44]} e5 {[%emt 0:00:43]} 12. O-O {[%emt 0:00:55]} Nd7 {[%emt 0:05:13]} 13. exd4 {[%emt 0:05:31]} exd4 {[%emt 0:00:05]} 14. Qd1 {[%emt 0:00:36]} Nxc5 {[%emt 0:01:05]} 15. Nb3 {[%emt 0:00:49]} Nxb3 {[%emt 0:00:33]} 16. Qxb3 {[%emt 0:00:13]} Qf6 {[%emt 0:04:53]} 17. Nd2 {[%emt 0:08:31]} Bf5 {[%emt 0:01:14]} 18. Ne4 {[%emt 0:01:27]} Qg6 {[%emt 0:05:34]} 19. Rfe1 {[%emt 0:09:16]} Rfe8 {[%emt 0:01:22]} 20. Qf3 {[%emt 0:13:05]} Ne5 {[%emt 0:01:54]} 21. Qd1 {[%emt 0:02:31]} Rad8 {[%emt 0:04:02]} 22. c5 {[%emt 0:05:05]} d3 {[%emt 0:14:04]} 23. Nd6 {[%emt 0:02:03]} Bg4 {[%emt 0:00:32]} 24. Qd2 {[%emt 0:07:56]} Nf3+ {[%emt 0:07:43]} 25. Bxf3 {[%emt 0:00:30]} Rxe1+ {[%emt 0:00:04]} 26. Rxe1 {[%emt 0:00:06]} Bxf3 {[%emt 0:00:03]} 27. Re3 {[%emt 0:01:54]} Be2 {[%emt 0:01:32]} 28. Nxb7 {[%emt 0:01:55]} Ra8 {[%emt 0:00:42]} 29. h4 {[%emt 0:11:34]} h5 {[%emt 0:01:34]} 30. Qxb4 {[%emt 0:01:51]} Rxa2 {[%emt 0:00:12]} 31. Nd6 {[%emt 0:00:34]} d2 {[%emt 0:07:29]} 0-1

[Event "Mitropa Cup Open 2024"]
[Site "Apolda"]
[Date "2024.02.21"]
[Round "7.3"]
[White "Lavrencic, Matic"]
[Black "Velten, Paul"]
[Result "1/2-1/2"]
[ECO "B11"]
[WhiteElo "2299"]
[BlackElo "2470"]
[Annotator "TA"]
[PlyCount "58"]
[EventDate "2024.02.15"]
[EventType "team-tourn"]
[EventCountry "GER"]
[SourceTitle "playchess.com"]
[Source "ChessBase"]
[SourceQuality "1"]
[WhiteTeam "Slovenia"]
[BlackTeam "France"]
[WhiteTeamCountry "SLO"]
[BlackTeamCountry "FRA"]
[TimeControl "40/5400+30:1800+30"]

{[%evp 11,58,12,7,0,0,2,7,3,8,0,0,1,0,0,4,0,17,2,14,10,18,12,18,16,11,13,28,13,34,29,21,18,37,11,31,0,0,0,0,0,0,0,0,0,0,0,0,0,0]} 1. e4 {[%emt 0:00:19]} c6 {[%emt 0:01:12]} 2. Nc3 {[%emt 0:04:38]} d5 {[%emt 0:01:49]} 3. Nf3 {[%emt 0:00:35]} Bg4 {[%emt 0:00:43]} 4. h3 {[%emt 0:00:34]} Bxf3 {[%emt 0:00:47]} 5. Qxf3 {[%emt 0:01:14]} e6 {[%emt 0:00:49]} 6. d4 {[%emt 0:01:52]} Nf6 {[%emt 0:08:40]} 7. a3 {[%emt 0:09:11]} dxe4 {[%emt 0:09:05]} 8. Qe3 {[%emt 0:00:26][%cal Of1e2]} Nbd7 {[%emt 0:01:46]} 9. Nxe4 {[%emt 0:01:15]} Nxe4 {[%emt 0:00:49]} 10. Qxe4 {[%emt 0:00:11]} Nf6 {[%emt 0:00:24]} 11. Qd3 {[%emt 0:02:58]} Bd6 {[%emt 0:04:34]} 12. Be2 {[%emt 0:00:37]} O-O {[%emt 0:00:26]} 13. O-O {[%emt 0:01:01]} Qc7 {[%emt 0:01:32]} 14. Qf3 {[%emt 0:05:06]} Rad8 {[%emt 0:01:58]} 15. c3 {[%emt 0:01:56]} a6 {[%emt 0:01:04]} 16. a4 {[%emt 0:01:17]} Rd7 {[%emt 0:03:04]} 17. Rd1 {[%emt 0:08:31]} Rfd8 {[%emt 0:00:12]} 18. g3 {[%emt 0:03:33]} Be7 {[%emt 0:02:24]} 19. Kg2 {[%emt 0:04:02]} a5 {[%emt 0:01:26]} 20. Bd3 {[%emt 0:07:56]} Qb6 {[%emt 0:07:53]} 21. Qe2 {[%emt 0:04:41]} g6 {[%emt 0:02:06]} 22. h4 {[%emt 0:01:42]} h5 {[%emt 0:10:20]} 23. Qc2 {[%emt 0:14:16]} Kg7 {[%emt 0:01:25][%cal Oe6e5] The position is equal.} 24. Be2 {[%emt 0:00:57]} c5 {[%emt 0:02:28]} 25. Bb5 {[%emt 0:01:16][%cal Od4c5] [#] Strongly threatening dxc5!} Rd5 {[%emt 0:00:17][%cal Rc5d4]} 26. Bc4 {[%emt 0:00:33] This pair of bishops is nice.} Rf5 {[%emt 0:00:29][%cal Rc5d4]} 27. Bd3 {[%emt 0:02:02]} Rfd5 {[%emt 0:00:59]} 28. Bc4 {[%emt 0:00:21]} Rf5 {[%emt 0:00:04][%cal Rc5d4]} 29. Bd3 {[%emt 0:00:17]} Rfd5 {[%emt 0:01:19] An uneventful encounter.   Weighted Error Value: White=0.04 (flawless) /Black=0.04 (flawless) .  Inaccurate:     	White=2     	---        OK:         	White=11    	Black=14     Best:        	White=2     	---} 1/2-1/2

[Event "Mitropa Cup Open 2024"]
[Site "Apolda"]
[Date "2024.02.21"]
[Round "7.4"]
[White "Decuigniere, Tom"]
[Black "Olenik Campa, Rudi"]
[Result "1-0"]
[ECO "D38"]
[WhiteElo "2401"]
[BlackElo "2299"]
[Annotator "TA"]
[PlyCount "53"]
[EventDate "2024.02.15"]
[EventType "team-tourn"]
[EventCountry "GER"]
[SourceTitle "playchess.com"]
[Source "ChessBase"]
[SourceQuality "1"]
[WhiteTeam "France"]
[BlackTeam "Slovenia"]
[WhiteTeamCountry "FRA"]
[BlackTeamCountry "SLO"]
[TimeControl "40/5400+30:1800+30"]

{[%evp 12,53,0,7,12,-13,0,-2,0,2,3,0,0,-15,57,45,62,64,105,122,145,130,139,112,116,121,169,166,217,200,202,168,250,216,866,860,867,867,867,867,867,855,1931,2415]} 1. d4 {[%emt 0:00:04]} Nf6 {[%emt 0:00:39]} 2. c4 {[%emt 0:00:06]} e6 {[%emt 0:00:04]} 3. Nf3 {[%emt 0:00:07]} d5 {[%emt 0:00:04]} 4. Nc3 {[%emt 0:00:07]} Bb4 {[%emt 0:00:09]} 5. Qa4+ {[%emt 0:00:08]} Nc6 {[%emt 0:00:04]} 6. a3 {[%emt 0:00:06]} Bxc3+ {[%emt 0:00:04]} 7. bxc3 {[%emt 0:00:06]} Ne4 {[%emt 0:00:19]} 8. Bf4 {[%emt 0:00:52]} O-O {[%emt 0:05:30]} 9. h4 {[%emt 0:09:05]} Bd7 {[%emt 0:17:55] Threatens to win with ...e5. The position is equal.} 10. Qc2 {[%emt 0:02:07]} Ne7 {[%emt 0:07:46]} 11. e3 {[%emt 0:06:56]} c5 {[%emt 0:03:12]} 12. Bd3 {[%emt 0:05:44]} Qa5 {[%emt 0:12:36]} (12... Rc8 $11) 13. O-O $14 {[%emt 0:02:52]} Ng6 {[%emt 0:07:12]} 14. Bh2 {[%emt 0:08:36]} Rfc8 {[%emt 0:07:59]} 15. h5 {[%emt 0:09:19][%cal Bh4h5,Bh5h6][%mdl 32]} Ne7 {[%emt 0:05:04]} 16. Bxe4 {[%emt 0:04:22]} dxe4 {[%emt 0:00:37]} 17. Ne5 {[%emt 0:00:06]} Bc6 {[%emt 0:01:31]} 18. h6 {[%emt 0:03:16] White is more active.} Ng6 {[%emt 0:03:41]} (18... Qa4 $16 {was worth a try.} 19. Qe2 f6) 19. Nxc6 $18 {[%emt 0:03:56]} Rxc6 {[%emt 0:03:16] [#]} (19... bxc6 {was necessary.} 20. Qxe4 Qa6 21. dxc5 gxh6) 20. d5 $1 {[%emt 0:00:15][%cal Bd4d5,Bd5d6,Bd6d7][%mdl 32]} (20. Qxe4 cxd4 21. cxd4 Rxc4 22. Qxb7 Rac8 23. hxg7 Kxg7) 20... Ra6 {[%emt 0:00:49]} 21. Qxe4 {[%emt 0:01:40]} Qxc3 {[%emt 0:00:26]} (21... exd5 $142 22. cxd5 Qa4) 22. d6 {[%emt 0:00:32]} Rxa3 $2 {[%emt 0:01:36]} (22... Rb6 23. d7 Rd8) 23. Rxa3 {[%emt 0:09:11] White is clearly winning.} ({Stronger than} 23. Qxb7 Rxa1 24. Qxa8+ Nf8 $11) 23... Qxa3 {[%emt 0:00:04]} 24. Qxb7 {[%emt 0:00:05]} Rf8 {[%emt 0:00:43]} 25. d7 {[%emt 0:02:36]} Qd3 {[%emt 0:00:24] Prevents Bd6} 26. Qc7 {[%emt 0:00:42] [#] Bd6 would kill now.} ({Weaker is} 26. Qxa7 Rd8 27. Qa1 (27. Qxc5 Qxd7 28. hxg7 h6 $18) 27... gxh6 $18) 26... Nh4 {[%emt 0:04:07]} 27. Qd6 {[%emt 0:00:20] Weighted Error Value: White=0.10 (very precise) /Black=0.30.  Mistake:       	---       	Black=5      Inaccurate:     	---       	Black=1      OK:         	White=6     	Black=4      Best:        	White=1     	Black=1} ({And not} 27. Qxa7 Qe4 28. f3 (28. Qxc5 $2 Qxg2#) 28... Qc2 $11) 1-0